fUSD/lending_fUSD_20240615
["ID","MTS","AMOUNT","RATE_DAILY","PERIOD"]
[329546825,1718425897001,-500.0,0.00023013,3]
[329546826,1718425897020,-700.5,0.00023013,3]
[329546827,1718425897044,-871.59,0.00023013,3]
[329546828,1718425897061,-500.0,0.00023013,3]
[329546829,1718425897096,-599.22,0.00023013,3]
[329546830,1718425897110,-500.0,0.00023013,3]
[329546831,1718425897121,-500.0,0.00023013,3]
[329546832,1718425897140,-605.07440565,0.00023013,3]
[329546833,1718425897155,-500.0,0.00023013,3]
[329546834,1718425897173,-559.72,0.00023013,3]
[329546835,1718425897200,-500.0,0.00023013,3]
[329546836,1718425897217,-500.0,0.00023013,3]
[329546837,1718425897244,-500.0,0.00023013,3]
[329546838,1718425897256,-500.0,0.00023013,3]
[329546839,1718425897267,-500.0,0.00023013,3]
[329546840,1718425897287,-509.79,0.00023013,3]
[329546841,1718425897300,-500.0,0.00023013,3]
[329546842,1718425897310,-500.0,0.00023013,3]
[329546843,1718425897321,-500.0,0.00023013,3]
[329546844,1718425897343,-500.0,0.00023013,3]
[329546845,1718425897364,-500.0,0.00023013,3]
[329546846,1718425897378,-500.0,0.00023013,3]
[329546847,1718425897392,-500.0,0.00023013,3]
[329546848,1718425897410,-500.0,0.00023013,3]
[329546849,1718425897422,-500.0,0.00023013,3]
[329546850,1718425897449,-500.0,0.00023013,3]
[329546851,1718425897469,-500.0,0.00023013,3]
[329546852,1718425897480,-500.0,0.00023013,3]
[329546853,1718425897494,-484.2626049,0.00023013,3]
[329546854,1718425897506,-500.0,0.00023013,3]
[329546855,1718425897523,-500.0,0.00023013,3]
[329546856,1718425897533,-500.0,0.00023013,3]
[329546857,1718425897550,-500.0,0.00023013,3]
[329546858,1718425897569,-500.0,0.00023013,3]
[329546859,1718425897599,-521.78797102,0.00023013,3]
[329546860,1718425897613,-500.0,0.00023013,3]
[329546861,1718425897649,-500.0,0.00023013,3]
[329546862,1718425897662,-581.31317521,0.00023013,3]
[329546863,1718425897678,-855.89,0.00023013,3]
[329546864,1718425897705,-500.0,0.00023013,3]
[329546865,1718425897739,-500.0,0.00023013,3]
[329546866,1718425897757,-500.0,0.00023013,3]
[329546867,1718425897788,-500.0,0.00023013,3]
[329546868,1718425897799,-500.0,0.00023013,3]
[329546869,1718425897812,-500.0,0.00023013,3]
[329546870,1718425897823,-500.0,0.00023013,3]
[329546871,1718425897836,-500.0,0.00023013,3]
[329546872,1718425897857,-500.0,0.00023013,3]
[329546873,1718425897891,-500.0,0.00023013,3]
[329546874,1718425897905,-500.0,0.00023013,3]
[329546875,1718425897925,-500.0,0.00023013,3]
[329546876,1718425897936,-500.0,0.00023013,3]
[329546877,1718425897970,-500.0,0.00023013,3]
[329546878,1718425897987,-500.0,0.00023013,3]
[329546879,1718425898003,-500.0,0.00023013,3]
[329546880,1718425898020,-500.0,0.00023013,3]
[329546881,1718425898044,-500.0,0.00023013,3]
[329546882,1718425898103,-289.92767477,0.00023013,3]
[329546883,1718425898130,-541.28,0.00023013,3]
[329546884,1718425898141,-500.0,0.00023013,3]
[329546885,1718425898155,-500.0,0.00023013,3]
[329546886,1718425898177,-500.0,0.00023013,3]
[329546887,1718425898198,-500.0,0.00023013,3]
[329546888,1718425898231,-536.86870863,0.00023013,3]
[329546889,1718425898265,-532.40785668,0.00023013,3]
[329546890,1718425898315,-500.0,0.00023013,3]
[329546891,1718425898349,-500.0,0.00023013,3]
[329546892,1718425898458,-516.52831848,0.00023013,3]
[329546893,1718425898469,-500.0,0.00023013,3]
[329546894,1718425898481,-500.0,0.00023013,3]
[329546895,1718425898494,-257.70569476,0.00023013,3]
[329546896,1718425898516,-500.0,0.00023013,3]
[329546897,1718425898529,-500.0,0.00023013,3]
[329546898,1718425898541,-500.0,0.00023013,3]
[329546899,1718425898558,-508.68,0.00023013,3]
[329546900,1718425898584,-516.42853483,0.00023013,3]
[329546901,1718425898628,-602.07963688,0.00023013,3]
[329546902,1718425898643,-500.0,0.00023013,3]
[329546903,1718425898657,-500.0,0.00023013,3]
[329546904,1718425898670,-500.0,0.00023013,3]
[329546905,1718425898692,-500.0,0.00023013,3]
[329546906,1718425898704,-500.0,0.00023013,3]
[329546907,1718425898721,-1302.24,0.00023013,3]
[329546908,1718425898737,-500.0,0.00023013,3]
[329546909,1718425898757,-301.69694966,0.00023013,3]
[329546910,1718425898780,-500.0,0.00023013,3]
[329546911,1718425898795,-1054.56,0.00023013,3]
[329546912,1718425898824,-500.0,0.00023013,3]
[329546913,1718425898836,-509.17816809,0.00023013,3]
[329546914,1718425898855,-613.46,0.00023013,3]
[329546915,1718425898869,-500.0,0.00023013,3]
[329546916,1718425898882,-512.45114663,0.00023013,3]
[329546917,1718425898907,-500.0,0.00023013,3]
[329546918,1718425898929,-518.85000625,0.00023013,3]
[329546919,1718425898939,-500.0,0.00023013,3]
[329546920,1718425898952,-500.0,0.00023013,3]
[329546921,1718425898978,-500.0,0.00023013,3]
[329546922,1718425898991,-500.0,0.00023013,3]
[329546923,1718425899007,-500.0,0.00023013,3]
[329546924,1718425899045,-500.0,0.00023013,3]
[329546925,1718425899057,-500.0,0.00023013,3]
[329546926,1718425899074,-500.0,0.00023013,3]
[329546927,1718425899087,-500.0,0.00023013,3]
[329546928,1718425899109,-500.0,0.00023013,3]
[329546929,1718425899159,-500.0,0.00023013,3]
[329546930,1718425899181,-500.0,0.00023013,3]
[329546931,1718425899196,-500.0,0.00023013,3]
[329546932,1718425899231,-500.0,0.00023013,3]
[329546933,1718425899246,-500.0,0.00023013,3]
[329546934,1718425899277,-500.0,0.00023013,3]
[329546935,1718425899295,-500.0,0.00023013,3]
[329546936,1718425899317,-500.0,0.00023013,3]
[329546937,1718425899331,-500.0,0.00023013,3]
[329546938,1718425899348,-500.0,0.00023013,3]
[329546939,1718425899371,-500.0,0.00023013,3]
[329546940,1718425899384,-500.0,0.00023013,3]
[329546941,1718425899412,-500.0,0.00023013,3]
[329546942,1718425899447,-500.0,0.00023013,3]
[329546943,1718425899459,-500.0,0.00023013,3]
[329546944,1718425899495,-500.0,0.00023013,3]
[329546945,1718425899507,-500.0,0.00023013,3]
[329546946,1718425899521,-500.0,0.00023013,3]
[329546947,1718425899557,-999.08,0.00023013,3]
[329546948,1718425899594,-1807.02,0.00023013,3]
[329546949,1718425899609,-500.0,0.00023013,3]
[329546950,1718425899625,-500.0,0.00023013,3]
[329546951,1718425899643,-500.0,0.00023013,3]
[329546952,1718425899662,-500.0,0.00023013,3]
[329546953,1718425899685,-861.02,0.00023013,3]
[329546954,1718425899704,-621.74,0.00023013,3]
[329546955,1718425899729,-500.0,0.00023013,3]
[329546956,1718425899754,-594.26563799,0.00023013,3]
[329546957,1718425899770,-500.0,0.00023013,3]
[329546958,1718425899797,-1004.28,0.00023013,3]
[329546959,1718425899811,-500.0,0.00023013,3]
[329546960,1718425899853,-500.0,0.00023013,3]
[329546961,1718425899874,-2592.27,0.00023013,3]
[329546962,1718425899896,-626.43,0.00023013,3]
[329546963,1718425899949,-1178.81,0.00023013,3]
[329546964,1718425899966,-4497.82,0.00023013,3]
[329546965,1718425899978,-538.00639151,0.00023013,3]
[329546966,1718425900009,-500.0,0.00023013,3]
[329546967,1718425900022,-500.0,0.00023013,3]
[329546968,1718425900067,-500.0,0.00023013,3]
[329546969,1718425900116,-500.0,0.00023013,3]
[329546970,1718425900128,-500.0,0.00023013,3]
[329546971,1718425900140,-192.18534929,0.00023013,3]
[329546972,1718425900155,-500.0,0.00023013,3]
[329546973,1718425900166,-500.0,0.00023013,3]
[329546974,1718425900183,-500.0,0.00023013,3]
[329546975,1718425900195,-500.0,0.00023013,3]
[329546976,1718425900219,-500.0,0.00023013,3]
[329546977,1718425900241,-500.0,0.00023013,3]
[329546978,1718425900253,-586.43105286,0.00023013,3]
[329546979,1718425900276,-500.0,0.00023013,3]
[329546980,1718425900298,-500.0,0.00023013,3]
[329546981,1718425900343,-500.0,0.00023013,3]
[329546982,1718425900368,-500.0,0.00023013,3]
[329546983,1718425900414,-500.0,0.00023013,3]
[329546984,1718425900452,-500.0,0.00023013,3]
[329546985,1718425900495,-500.0,0.00023013,3]
[329546986,1718425900512,-2209.06,0.00023013,3]
[329546987,1718425900555,-5795.61,0.00023013,3]
[329546988,1718425900570,-206.76368306,0.00023013,3]
[329546989,1718425900588,-500.0,0.00023013,3]
[329546990,1718425900609,-500.0,0.00023013,3]
[329546991,1718425900626,-500.0,0.00023013,3]
[329546992,1718425900639,-500.0,0.00023013,3]
[329546993,1718425900651,-500.0,0.00023013,3]
[329546994,1718425900665,-574.66,0.00023013,3]
[329546995,1718425900681,-500.0,0.00023013,3]
[329546996,1718425900696,-500.0,0.00023013,3]
[329546997,1718425900717,-500.0,0.00023013,3]
[329546998,1718425900730,-500.0,0.00023013,3]
[329546999,1718425900762,-500.0,0.00023013,3]
[329547000,1718425900789,-500.0,0.00023013,3]
[329547001,1718425900811,-500.0,0.00023013,3]
[329547002,1718425900836,-500.0,0.00023013,3]
[329547003,1718425900850,-759.66,0.00023013,3]
[329547004,1718425900867,-500.0,0.00023013,3]
[329547005,1718425900882,-500.0,0.00023013,3]
[329547006,1718425900905,-551.9,0.00023013,3]
[329547007,1718425900918,-500.0,0.00023013,3]
[329547008,1718425900929,-500.0,0.00023013,3]
[329547009,1718425900958,-546.7,0.00023013,3]
[329547010,1718425900988,-798.38,0.00023013,3]
[329547011,1718425901028,-500.0,0.00023013,3]
[329547012,1718425901050,-1347.27,0.00023013,3]
[329547013,1718425901062,-500.0,0.00023013,3]
[329547014,1718425901083,-500.0,0.00023013,3]
[329547015,1718425901107,-500.0,0.00023013,3]
[329547016,1718425901132,-543.11366798,0.00023013,3]
[329547017,1718425901168,-500.0,0.00023013,3]
[329547018,1718425901179,-150.0,0.00023054,2]
[329547019,1718425901200,-150.0,0.00023054,2]
[329547020,1718425901244,-150.0,0.00023054,2]
[329547021,1718425901256,-150.0,0.00023054,2]
[329547022,1718425901270,-150.0,0.00023054,2]
[329547023,1718425901327,-150.0,0.00023054,2]
[329547024,1718425901345,-150.0,0.00023054,2]
[329547025,1718425901355,-201.26986,0.00023054,2]
[329547026,1718425901366,-497.59266445,0.00023186,2]
[329547027,1718425901376,-1002.63970784,0.00023187,2]
[329547028,1718425901387,-1426.97987239,0.00023284,2]
[329547029,1718425901579,-8207.04180454,0.00023284,2]
[329547030,1718425901609,-4732.09485197,0.00023284,2]
[329547031,1718425901621,-500.0,0.00023286,3]
[329547032,1718425901635,-150.0,0.00023286,10]
[329547033,1718425901648,-150.0,0.00023286,10]
[329547034,1718425901659,-150.0,0.00023286,10]
[329547035,1718425901678,-675.2760117,0.00023287,4]
[329547036,1718425901689,-21955.09427187,0.00023287,2]
[329547037,1718425901704,-10884.83484054,0.00023287,2]
[329547038,1718425901723,-206284.67380091,0.00023287,2]
[329547039,1718425901759,-626.68030888,0.00023287,2]
[329547040,1718425901788,-578.06080476,0.00023287,2]
[329547041,1718425901802,-1411.70735796,0.00023287,2]
[329547042,1718425901835,-2041.39395642,0.00023287,2]
[329547043,1718425901920,-6491.74985562,0.00023287,2]
[329547044,1718425901974,-1033.05017563,0.00023287,2]
[329547045,1718425901987,-432.5,0.00023287,2]
[329547046,1718425902000,-5229.38594793,0.00023287,2]
[329547047,1718425902013,-21923.19291871,0.00023287,2]
[329547048,1718425902026,-34160.97746472,0.00023287,2]
[329547049,1718425902039,-2588.79992052,0.00023287,2]
[329547050,1718425902160,-3921.13534616,0.00023287,2]
[329547051,1718425902174,-1483.66637021,0.00023287,2]
[329547052,1718425902187,-486.12964601,0.00023287,2]
[329547053,1718425902203,-17632.34510309,0.00023287,2]
[329547054,1718425902216,-446.79515573,0.00023287,2]
[329547055,1718425902228,-386.58019669,0.00023287,2]
[329547056,1718425902241,-1042.33917751,0.00023287,2]
[329547057,1718425902253,-1047.10843307,0.00023287,2]
[329547058,1718425902280,-500.0,0.00023287,3]
[329547059,1718425902290,-500.0,0.00023287,3]
[329547060,1718425902304,-500.0,0.00023287,3]
[329547061,1718425902315,-500.0,0.00023287,3]
[329547062,1718425902325,-500.0,0.00023287,3]
[329547063,1718425902335,-500.0,0.00023287,3]
[329547064,1718425902349,-500.0,0.00023287,3]
[329547065,1718425902359,-500.0,0.00023287,3]
[329547066,1718425902372,-500.0,0.00023287,3]
[329547067,1718425902381,-500.0,0.00023287,3]
[329547068,1718425902392,-500.0,0.00023287,3]
[329547069,1718425902403,-500.0,0.00023287,3]
[329547070,1718425902414,-500.0,0.00023287,3]
[329547071,1718425902424,-500.0,0.00023287,3]
[329547072,1718425902435,-500.0,0.00023287,3]
[329547073,1718425902451,-285.70820836,0.00023287,3]
[329547074,1718425902485,-500.0,0.00023287,3]
[329547075,1718425902497,-500.0,0.00023287,3]
[329547076,1718425902509,-500.0,0.00023287,3]
[329547077,1718425902519,-500.0,0.00023287,3]
[329547078,1718425902532,-500.0,0.00023287,3]
[329547079,1718425902544,-556.45740694,0.00023287,3]
[329547080,1718425902560,-500.0,0.00023287,3]
[329547081,1718425902575,-500.0,0.00023287,3]
[329547082,1718425902599,-753.38,0.00023287,3]
[329547083,1718425902623,-500.0,0.00023287,3]
[329547084,1718425902637,-500.0,0.00023287,3]
[329547085,1718425902653,-500.0,0.00023287,3]
[329547086,1718425902665,-218.69924959,0.00023287,3]
[329547087,1718425902681,-337.25825035,0.00023287,3]
[329547088,1718425902709,-500.0,0.00023287,3]
[329547089,1718425902749,-510.00281911,0.00023287,3]
[329547090,1718425902791,-500.0,0.00023287,3]
[329547091,1718425902806,-500.0,0.00023287,3]
[329547092,1718425902820,-90.21599659,0.00023287,3]
[329547093,1718425902852,-325.95661418,0.00023287,3]
[329547094,1718425902956,-83.82738923,0.00023287,3]
[329547095,1718425902967,-500.0,0.00023287,3]
[329547096,1718425902989,-500.0,0.00023287,3]
[329547097,1718425903017,-500.0,0.00023287,3]
[329547098,1718425903043,-500.0,0.00023287,3]
[329547099,1718425903061,-500.0,0.00023287,3]
[329547100,1718425903096,-500.0,0.00023287,3]
[329547101,1718425903116,-350.42313233,0.00023287,3]
[329547102,1718425903136,-500.0,0.00023287,3]
[329547103,1718425903176,-500.0,0.00023287,3]
[329547104,1718425903200,-508.82249339,0.00023287,3]
[329547105,1718425903227,-500.0,0.00023287,3]
[329547106,1718425903254,-500.0,0.00023287,3]
[329547107,1718425903274,-629.18354328,0.00023287,3]
[329547108,1718425903298,-500.0,0.00023287,3]
[329547109,1718425903309,-500.0,0.00023287,3]
[329547110,1718425903321,-500.0,0.00023287,3]
[329547111,1718425903333,-451.00020592,0.00023287,3]
[329547112,1718425903346,-15.81209426,0.00023287,3]
[329547113,1718425903361,-484.18790574,0.00023287,3]
[329547114,1718425903378,-500.0,0.00023287,3]
[329547115,1718425903404,-500.0,0.00023287,2]
[329547116,1718425903457,-500.0,0.00023287,3]
[329547117,1718425903472,-500.0,0.00023287,3]
[329547118,1718425903483,-500.0,0.00023287,3]
[329547119,1718425903688,-200.0,0.00023287,3]
[329547120,1718425903700,-500.0,0.00023287,3]
[329547121,1718425903713,-500.0,0.00023287,3]
[329547122,1718425903728,-500.0,0.00023287,3]
[329547123,1718425903758,-500.0,0.00023287,3]
[329547124,1718425903772,-500.0,0.00023287,3]
[329547125,1718425903789,-500.0,0.00023287,3]
[329547126,1718425903808,-511.85669402,0.00023287,3]
[329547127,1718425903832,-666.88,0.00023287,3]
[329547128,1718425903848,-500.0,0.00023287,3]
[329547129,1718425903865,-508.72320302,0.00023287,3]
[329547130,1718425903878,-500.0,0.00023287,3]
[329547131,1718425903890,-500.0,0.00023287,3]
[329547132,1718425903903,-51.19181144,0.00023287,3]
[329547133,1718425903927,-448.80818856,0.00023287,3]
[329547134,1718425903938,-500.0,0.00023287,3]
[329547135,1718425903977,-500.0,0.00023287,3]
[329547136,1718425904006,-234.6858664,0.00023287,3]
[329547137,1718425904026,-500.0,0.00023287,3]
[329547138,1718425904039,-500.0,0.00023287,3]
[329547139,1718425904051,-500.0,0.00023287,3]
[329547140,1718425904099,-500.0,0.00023287,3]
[329547141,1718425904160,-38.06762592,0.00023287,3]
[329547142,1718425904210,-567.11232863,0.00023287,3]
[329547143,1718425904227,-500.0,0.00023287,3]
[329547144,1718425904253,-500.0,0.00023287,3]
[329547145,1718425904295,-500.0,0.00023287,3]
[329547146,1718425904317,-38.2572574,0.00023287,3]
[329547147,1718425904354,-295.3859018,0.00023287,3]
[329547148,1718425904395,-166.3568408,0.00023287,3]
[329547149,1718425904420,-500.0,0.00023287,3]
[329547150,1718425904432,-20.87977586,0.00023287,3]
[329547151,1718425904448,-479.12022414,0.00023287,3]
[329547152,1718425904462,-553.67663398,0.00023287,3]
[329547153,1718425904487,-500.0,0.00023287,3]
[329547154,1718425904503,-500.0,0.00023287,3]
[329547155,1718425904545,-500.0,0.00023287,3]
[329547156,1718425904577,-500.0,0.00023287,3]
[329547157,1718425904596,-500.0,0.00023287,3]
[329547158,1718425904607,-500.0,0.00023287,3]
[329547159,1718425904629,-500.0,0.00023287,3]
[329547160,1718425904655,-500.0,0.00023287,3]
[329547161,1718425904670,-500.0,0.00023287,3]
[329547162,1718425904687,-500.0,0.00023287,3]
[329547163,1718425904724,-511.07114428,0.00023287,3]
[329547164,1718425904738,-500.0,0.00023287,3]
[329547165,1718425904765,-500.0,0.00023287,3]
[329547166,1718425904784,-500.0,0.00023287,3]
[329547167,1718425904803,-500.0,0.00023287,3]
[329547168,1718425904822,-500.0,0.00023287,3]
[329547169,1718425904847,-515.43333293,0.00023287,3]
[329547170,1718425904863,-500.0,0.00023287,3]
[329547171,1718425904875,-513.5824689,0.00023287,3]
[329547172,1718425904886,-511.05236468,0.00023287,3]
[329547173,1718425904896,-513.78601581,0.00023287,3]
[329547174,1718425904907,-500.0,0.00023287,3]
[329547175,1718425904924,-500.0,0.00023287,3]
[329547176,1718425904943,-510.86710411,0.00023287,3]
[329547177,1718425904954,-500.0,0.00023287,3]
[329547178,1718425904988,-500.0,0.00023287,3]
[329547179,1718425905011,-511.42422741,0.00023287,3]
[329547180,1718425905096,-500.0,0.00023287,3]
[329547181,1718425905124,-506.00126087,0.00023287,3]
[329547182,1718425905139,-500.0,0.00023287,3]
[329547183,1718425905151,-500.0,0.00023287,3]
[329547184,1718425905169,-586.56,0.00023287,3]
[329547185,1718425905187,-500.0,0.00023287,3]
[329547186,1718425905204,-513.28143829,0.00023287,3]
[329547187,1718425905225,-500.0,0.00023287,3]
[329547188,1718425905245,-504.079816,0.00023287,3]
[329547189,1718425905255,-500.0,0.00023287,3]
[329547190,1718425905266,-506.32835411,0.00023287,3]
[329547191,1718425905284,-500.0,0.00023287,3]
[329547192,1718425905296,-500.0,0.00023287,3]
[329547193,1718425905306,-511.86786202,0.00023287,3]
[329547194,1718425905319,-639.03,0.00023287,3]
[329547195,1718425905338,-500.0,0.00023287,3]
[329547196,1718425905357,-513.26698364,0.00023287,3]
[329547197,1718425905382,-500.0,0.00023287,3]
[329547198,1718425905394,-500.0,0.00023287,3]
[329547199,1718425905409,-500.0,0.00023287,3]
[329547200,1718425905425,-500.0,0.00023287,3]
[329547201,1718425905449,-500.0,0.00023287,3]
[329547202,1718425905489,-500.0,0.00023287,3]
[329547203,1718425905520,-500.0,0.00023287,3]
[329547204,1718425905547,-500.0,0.00023287,3]
[329547205,1718425905557,-500.0,0.00023287,3]
[329547206,1718425905579,-500.0,0.00023287,3]
[329547207,1718425905595,-500.0,0.00023287,3]
[329547208,1718425905615,-582.34,0.00023287,3]
[329547209,1718425905635,-500.0,0.00023287,3]
[329547210,1718425905652,-500.0,0.00023287,3]
[329547211,1718425905667,-500.0,0.00023287,3]
[329547212,1718425905681,-577.26945948,0.00023287,3]
[329547213,1718425905695,-500.0,0.00023287,3]
[329547214,1718425905712,-500.0,0.00023287,3]
[329547215,1718425905736,-500.0,0.00023287,3]
[329547216,1718425905748,-500.0,0.00023287,3]
[329547217,1718425905760,-500.0,0.00023287,3]
[329547218,1718425905775,-500.0,0.00023287,3]
[329547219,1718425905790,-500.0,0.00023287,3]
[329547220,1718425905803,-2274.82,0.00023287,3]
[329547221,1718425905816,-609.47671171,0.00023287,3]
[329547222,1718425905830,-500.0,0.00023287,3]
[329547223,1718425905862,-700.5,0.00023287,3]
[329547224,1718425905884,-871.59,0.00023287,3]
[329547225,1718425905931,-500.0,0.00023287,3]
[329547226,1718425906001,-599.22,0.00023287,3]
[329547227,1718425906014,-500.0,0.00023287,3]
[329547228,1718425906037,-500.0,0.00023287,3]
[329547229,1718425906068,-500.0,0.00023287,3]
[329547230,1718425906122,-559.72,0.00023287,3]
[329547231,1718425906137,-500.0,0.00023287,3]
[329547232,1718425906151,-268.10928394,0.00023287,3]
[329547233,1718425906188,-500.0,0.00023287,3]
[329547234,1718425906220,-500.0,0.00023287,3]
[329547235,1718425906254,-557.0,0.00023287,3]
[329547236,1718425906289,-509.79,0.00023287,3]
[329547237,1718425906314,-500.0,0.00023287,3]
[329547238,1718425906340,-500.0,0.00023287,3]
[329547239,1718425906448,-500.0,0.00023287,3]
[329547240,1718425906475,-500.0,0.00023287,3]
[329547241,1718425906537,-500.0,0.00023287,3]
[329547242,1718425906610,-500.0,0.00023287,3]
[329547243,1718425906657,-500.0,0.00023287,3]
[329547244,1718425906687,-220.91736493,0.00023287,3]
[329547245,1718425906700,-500.0,0.00023287,3]
[329547246,1718425906712,-500.0,0.00023287,3]
[329547247,1718425906740,-500.0,0.00023287,3]
[329547248,1718425906759,-500.0,0.00023287,3]
[329547249,1718425906771,-500.0,0.00023287,3]
[329547250,1718425906789,-500.0,0.00023287,3]
[329547251,1718425906808,-500.0,0.00023287,3]
[329547252,1718425906821,-500.0,0.00023287,3]
[329547253,1718425906832,-500.0,0.00023287,3]
[329547254,1718425906846,-500.0,0.00023287,3]
[329547255,1718425906861,-500.0,0.00023287,3]
[329547256,1718425906874,-855.89,0.00023287,3]
[329547257,1718425906885,-500.0,0.00023287,3]
[329547258,1718425906900,-417.62622612,0.00023287,3]
[329547259,1718425906919,-82.37377388,0.00023287,3]
[329547260,1718425906956,-500.0,0.00023287,3]
[329547261,1718425906977,-500.0,0.00023287,3]
[329547262,1718425906992,-500.0,0.00023287,3]
[329547263,1718425907006,-500.0,0.00023287,3]
[329547264,1718425907040,-500.0,0.00023287,3]
[329547265,1718425907055,-500.0,0.00023287,3]
[329547266,1718425907073,-500.0,0.00023287,3]
[329547267,1718425907103,-500.0,0.00023287,3]
[329547268,1718425907127,-500.0,0.00023287,3]
[329547269,1718425907186,-254.75863561,0.00023287,3]
[329547270,1718425907220,-500.0,0.00023287,3]
[329547271,1718425907268,-500.0,0.00023287,3]
[329547272,1718425907296,-500.0,0.00023287,3]
[329547273,1718425907315,-500.0,0.00023287,3]
[329547274,1718425907376,-500.0,0.00023287,3]
[329547275,1718425907391,-500.0,0.00023287,3]
[329547276,1718425907404,-541.28,0.00023287,3]
[329547277,1718425907418,-503.18594585,0.00023287,3]
[329547278,1718425907432,-500.0,0.00023287,3]
[329547279,1718425907445,-500.0,0.00023287,3]
[329547280,1718425907457,-500.0,0.00023287,3]
[329547281,1718425907473,-531.36405358,0.00023287,3]
[329547282,1718425907497,-500.0,0.00023287,3]
[329547283,1718425907523,-500.0,0.00023287,3]
[329547284,1718425907560,-531.9207468,0.00023287,3]
[329547285,1718425907572,-485.47008264,0.00023287,3]
[329547286,1718425907583,-500.0,0.00023287,3]
[329547287,1718425907616,-500.0,0.00023287,3]
[329547288,1718425907633,-423.01205376,0.00023287,3]
[329547289,1718425907648,-500.0,0.00023287,3]
[329547290,1718425907659,-500.0,0.00023287,3]
[329547291,1718425907672,-500.0,0.00023287,3]
[329547292,1718425907685,-1302.24,0.00023287,3]
[329547293,1718425907699,-500.0,0.00023287,3]
[329547294,1718425907710,-500.0,0.00023287,3]
[329547295,1718425907730,-1054.56,0.00023287,3]
[329547296,1718425907745,-500.0,0.00023287,3]
[329547297,1718425907762,-604.59926,0.00023287,2]
[329547298,1718425907792,-613.46,0.00023287,3]
[329547299,1718425907806,-500.0,0.00023287,3]
[329547300,1718425907834,-500.0,0.00023287,3]
[329547301,1718425907846,-184.83892631,0.00023287,3]
[329547302,1718425907864,-315.16107369,0.00023287,3]
[329547303,1718425907875,-500.0,0.00023287,3]
[329547304,1718425907887,-500.0,0.00023287,3]
[329547305,1718425907905,-500.0,0.00023287,3]
[329547306,1718425907918,-500.0,0.00023287,3]
[329547307,1718425907936,-500.0,0.00023287,3]
[329547308,1718425907962,-387.11508686,0.00023287,3]
[329547309,1718425907980,-500.0,0.00023287,3]
[329547310,1718425908001,-500.0,0.00023287,3]
[329547311,1718425908038,-500.0,0.00023287,3]
[329547312,1718425908051,-500.0,0.00023287,3]
[329547313,1718425908069,-494.18148939,0.00023287,3]
[329547314,1718425908099,-500.0,0.00023287,3]
[329547315,1718425908129,-500.0,0.00023287,3]
[329547316,1718425908152,-500.0,0.00023287,3]
[329547317,1718425908164,-321.90640343,0.00023287,3]
[329547318,1718425908184,-500.0,0.00023287,3]
[329547319,1718425908200,-500.0,0.00023287,3]
[329547320,1718425908231,-500.0,0.00023287,3]
[329547321,1718425908280,-500.0,0.00023287,3]
[329547322,1718425908302,-163.21758568,0.00023287,3]
[329547323,1718425908318,-500.0,0.00023287,3]
[329547324,1718425908330,-500.0,0.00023287,3]